bitfinex/quotes_ETHUSD_20250824
["timestamp","ask_amount","ask_price","bid_price","bid_amount"]
[1756072878703,0.4839,4796.4,4794.6,1.603]
[1756072878990,0.4839,4796.4,4796.3,0.004]
[1756072879203,0.69259,4796.4,4796.3,0.004]
[1756072879548,1.13678999,4796.4,4796.3,0.004]
[1756072879783,4.79678999,4796.4,4796.3,0.004]
[1756072879995,34.79678999,4796.4,4796.3,0.004]
[1756072880178,0.66,4796.0,4793.1,0.04]
[1756072880381,0.66,4794.9,4793.1,0.04]
[1756072880701,0.66,4793.7,4792.1,0.044]
[1756072880989,1.3999177,4794.5,4792.1,0.044]
[1756072880990,0.66,4793.2,4792.1,0.044]
[1756072881293,3.55493827,4793.0,4792.1,0.044]
[1756072881592,0.4439,4793.6,4792.1,0.044]
[1756072881593,0.44419999,4792.9,4792.1,0.044]
[1756072881806,0.44351999,4793.5,4792.1,0.044]
[1756072882100,3.4439,4793.6,4792.2,1.603]
[1756072882101,0.4439,4793.6,4792.2,1.603]
[1756072882270,0.4439,4793.6,4792.3,2.0866771]
[1756072882464,0.4439,4793.6,4792.2,1.603]
[1756072883087,0.4439,4794.3,4792.3,2.08667419]
[1756072883258,0.60453212,4794.2,4792.8,2.08645243]
[1756072883453,0.44348293,4794.4,4792.7,2.08650656]
[1756072883654,0.4439,4794.8,4792.6,4.1717]
[1756072883851,0.4439,4794.8,4792.7,2.08650656]
[1756072884096,0.4439,4794.8,4792.6,4.1717]
[1756072884324,0.4439,4794.8,4793.5,2.08612361]
[1756072884608,0.76993374,4795.1,4792.7,0.4717]
[1756072884609,0.32645081,4795.1,4793.2,2.7462889]
[1756072884902,0.04,4795.4,4793.6,3.0]
[1756072885051,0.04,4795.4,4794.0,2.08591986]
[1756072885254,0.04,4795.4,4794.1,1.604]
[1756072885891,0.04,4795.4,4794.4,3.0]
[1756072886061,0.04,4795.4,4794.5,4.72315711]
[1756072886256,0.04,4795.4,4794.7,2.08561822]
[1756072886489,0.04,4795.4,4794.6,0.4717]
[1756072886790,0.04,4795.4,4794.9,2.08554707]
[1756072887094,0.04,4795.4,4794.5,4.72315711]
[1756072887289,0.04,4795.4,4794.6,2.08567624]
[1756072887899,0.04,4795.4,4794.5,3.1018801]
[1756072888062,0.04,4795.4,4794.5,1.01615711]
[1756072888463,0.04,4795.4,4794.1,2.0757]
[1756072888671,0.04,4795.4,4794.2,3.0]
[1756072888860,0.04,4795.4,4793.6,0.4717]
[1756072888861,0.4839,4795.4,4793.2,1.604]
[1756072889062,4.14954584,4795.3,4792.0,0.4717]
[1756072889293,0.66,4794.1,4792.1,0.044]
[1756072889497,3.66,4793.9,4792.1,0.044]
[1756072889707,0.66,4793.7,4792.1,0.044]
[1756072889872,0.66,4793.7,4791.6,0.004]
[1756072889873,0.55493827,4792.5,4791.6,0.004]
[1756072890063,0.55493827,4792.5,4791.1,0.044]
[1756072890064,0.66,4791.8,4791.1,0.044]
[1756072890263,0.66,4791.8,4790.6,0.004]
[1756072890264,0.66,4790.4,4789.9,0.004]
[1756072890459,4.21356149,4790.2,4789.9,0.004]
[1756072890665,4.39808199,4790.0,4789.1,0.04]
[1756072890901,1.21351886,4789.6,4789.1,0.04]
[1756072891204,4.21351886,4789.4,4789.1,0.04]
[1756072891410,0.1048,4789.2,4789.1,0.04]
[1756072891574,1.7088,4789.2,4789.1,0.04]
[1756072891777,6.25624584,4789.2,4789.1,0.04]
[1756072891965,3.54834584,4789.2,4789.1,0.04]
[1756072892168,3.1048,4789.2,4789.1,0.04]
[1756072892465,0.1048,4789.2,4789.1,0.04]
[1756072893063,0.1048,4789.2,4789.1,0.5117]
[1756072893294,0.44199462,4791.1,4789.6,2.08783661]
[1756072893465,0.55351886,4792.2,4789.7,0.4717]
[1756072893770,1.97072524,4792.4,4790.3,0.104]
[1756072893771,0.104,4790.9,4790.3,0.104]
[1756072893966,0.104,4790.9,4790.3,0.5757]
[1756072894203,0.104,4790.9,4790.7,2.08736218]
[1756072894365,0.4420994,4792.2,4790.8,0.4717]
[1756072894563,0.104,4791.3,4790.8,0.4717]
[1756072894764,0.104,4791.3,4790.6,0.104]
[1756072894765,0.104,4791.3,4790.9,2.0872746]
[1756072895002,0.104,4791.3,4791.1,2.08719784]
[1756072895173,0.4420994,4792.3,4791.4,2.08706534]
[1756072895174,0.104,4791.6,4791.4,2.08706534]
[1756072895379,0.04,4792.4,4791.5,0.4717]
[1756072895589,0.104,4792.0,4791.8,2.08688482]
[1756072895905,0.04,4792.4,4791.8,2.08688482]
[1756072895906,0.04,4792.4,4791.9,0.5757]
[1756072896120,0.04,4792.4,4792.3,0.66]
[1756072896403,0.04,4792.4,4792.3,3.764]
[1756072896566,0.04,4792.4,4792.3,4.2357]
[1756072896762,0.04,4792.4,4792.3,7.9797]
[1756072897003,0.04,4793.4,4793.3,2.08624538]
[1756072897176,0.04,4793.4,4793.3,6.69124538]
[1756072897497,0.04,4793.4,4793.3,7.26694538]
[1756072897865,0.04,4793.4,4793.3,11.00994538]
[1756072898264,0.04,4793.4,4792.5,1.605]
[1756072898771,0.04,4793.4,4792.6,2.08651642]
[1756072899181,0.04,4793.4,4792.5,1.605]
[1756072899182,0.04,4793.4,4792.8,2.08645491]
[1756072899392,0.04,4793.4,4792.5,1.605]
[1756072899570,0.04,4793.4,4792.5,2.4397]
[1756072900494,0.04,4793.4,4792.6,2.08654204]
[1756072900999,0.04,4793.4,4792.5,3.69158738]
[1756072901202,0.04,4793.4,4792.7,2.08649923]
[1756072901509,0.04,4793.4,4792.6,0.4717]
[1756072901721,0.04,4793.4,4793.3,2.08624538]
[1756072901873,0.04,4793.4,4793.3,5.55794538]
[1756072902269,0.041,4794.4,4793.3,5.55794538]
[1756072902583,0.041,4794.4,4794.3,5.74581023]
[1756072902771,0.04,4796.4,4795.1,2.08544898]
[1756072902969,0.04,4796.4,4795.3,5.74537526]
[1756072903212,0.04,4796.4,4796.3,2.08494047]
[1756072903572,0.04,4796.4,4796.2,2.08497409]
[1756072903773,0.4694,4796.3,4794.1,0.4417]
[1756072903983,0.66,4796.0,4793.5,3.745]
[1756072904188,4.21351886,4795.8,4792.8,5.83643694]
[1756072904421,0.66,4795.3,4792.6,1.604]
[1756072904624,0.55436276,4794.8,4792.6,1.604]
[1756072904910,0.4434902,4794.7,4793.9,2.08598146]
[1756072905069,0.4434902,4794.6,4793.3,3.751]
[1756072905267,0.4434902,4794.5,4793.2,2.08624897]
[1756072905473,0.66,4794.1,4789.8,11.27720027]
[1756072905673,3.66,4793.9,4793.1,0.04]
[1756072905886,0.55436276,4793.4,4793.1,0.04]
[1756072906227,2.9802853,4794.0,4793.1,0.04]
[1756072906228,0.55436276,4794.0,4793.1,0.04]
[1756072906509,0.44408102,4794.5,4794.4,2.08576672]
[1756072906807,0.55436276,4796.1,4794.4,0.4417]
[1756072907007,0.44418288,4796.0,4794.5,0.78915274]
[1756072907305,0.04,4796.4,4795.8,2.08515634]
[1756072907478,0.04,4796.4,4795.3,2.08535072]
[1756072907479,0.44451726,4796.3,4795.3,2.08535072]
[1756072907675,0.44451726,4796.2,4795.1,1.604]
[1756072907875,0.44451726,4796.1,4795.1,1.604]
[1756072908210,0.04,4796.4,4796.3,2.08494047]
[1756072908909,0.04,4796.4,4796.1,0.104]
[1756072909073,0.104,4796.2,4793.9,0.4417]
[1756072909274,0.104,4796.2,4793.2,2.08627542]
[1756072909275,1.01981329,4796.1,4793.3,5.37]
[1756072909510,0.55436276,4795.5,4793.3,3.69022246]
[1756072909676,0.104,4794.4,4793.7,0.104]
[1756072910012,0.104,4794.1,4793.4,0.104]
[1756072910208,0.104,4794.1,4793.1,0.04]
[1756072910209,0.4694,4794.7,4793.1,0.04]
[1756072910512,0.104,4793.6,4793.1,0.04]
[1756072910714,0.9136547,4793.5,4793.1,0.04]
[1756072910880,0.4694,4793.5,4793.1,0.04]
[1756072911075,0.91364533,4793.4,4793.1,0.04]
[1756072911312,0.9136257,4793.3,4793.1,0.04]
[1756072911501,0.4442257,4793.2,4793.1,0.044]
[1756072912013,0.55436276,4794.1,4793.2,3.0]
[1756072912176,0.55436276,4795.3,4794.1,2.08588206]
[1756072912377,0.44460465,4795.2,4794.6,2.08567084]
[1756072912588,0.44460465,4795.1,4794.3,2.08577602]
[1756072912794,0.44460465,4795.0,4794.2,5.375]
[1756072913110,0.001,4795.4,4794.4,2.08573908]
[1756072913337,0.44477283,4795.3,4794.2,7.4608259]
[1756072913479,0.001,4795.4,4794.5,2.08571582]
[1756072913480,0.44477283,4795.2,4794.5,2.08571582]
[1756072913677,0.44477283,4795.1,4794.2,1.604]
[1756072913902,0.001,4795.4,4794.2,1.604]
[1756072913903,0.44477283,4795.0,4794.2,1.604]
[1756072914096,0.44477283,4794.9,4794.2,1.604]
[1756072914291,0.001,4795.4,4794.3,2.08581023]
[1756072914489,0.001,4795.4,4794.2,1.604]
[1756072914490,0.44490078,4795.3,4794.2,1.604]
[1756072914680,0.44490078,4795.2,4794.3,2.08579998]
[1756072914891,0.44490078,4795.1,4794.2,1.604]
[1756072915090,0.44490078,4795.0,4794.2,1.604]
[1756072915401,0.13034447,4795.4,4794.6,2.08567811]
[1756072915574,0.44493364,4795.3,4794.5,3.769]
[1756072915778,0.44493364,4795.2,4794.2,1.604]
[1756072915978,0.44493364,4795.1,4793.5,3.768]
[1756072916221,0.44493364,4795.0,4793.4,5.372]
[1756072916393,0.44493364,4794.9,4793.4,5.372]
[1756072916591,0.70526328,4794.8,4793.4,1.604]
[1756072916909,1.4686964,4794.7,4793.0,1.604]
[1756072917113,0.55436276,4794.5,4793.0,1.604]
[1756072917293,0.9992964,4794.4,4793.0,1.604]
[1756072917494,0.44493364,4794.3,4793.0,1.604]
[1756072917690,0.44493364,4794.2,4793.0,1.604]
[1756072918000,0.55436276,4794.9,4793.9,2.08594093]
[1756072918185,0.44512106,4794.8,4793.9,5.37]
[1756072918386,0.001,4795.4,4793.9,2.0457]
[1756072918387,0.44512106,4794.7,4793.9,2.0457]
[1756072918698,0.44512106,4795.1,4794.0,3.767]
[1756072918896,0.44512106,4795.0,4793.9,1.604]
[1756072919122,0.44512106,4794.9,4793.9,1.604]
[1756072919337,0.44512106,4794.8,4793.2,1.604]
[1756072919535,0.4694,4794.9,4793.2,1.604]
[1756072919536,1.46637317,4794.7,4793.2,1.604]
[1756072919694,0.44512106,4794.6,4793.1,0.044]
[1756072919888,0.44512106,4794.5,4793.1,0.044]
[1756072920090,0.44512106,4794.4,4793.1,0.044]
[1756072920289,0.44512106,4794.3,4793.1,0.044]
[1756072920537,0.104,4793.3,4793.1,0.044]
[1756072920703,0.44514933,4793.2,4793.1,0.044]
[1756072920888,5.1165633,4793.2,4793.1,0.044]
[1756072921222,1.66620054,4793.2,4793.1,0.044]
[1756072921525,1.75423391,4793.2,4793.1,0.044]
[1756072921831,0.54914933,4793.2,4793.1,0.044]
[1756072922123,1.604,4794.1,4793.1,0.044]
[1756072922124,0.104,4794.4,4793.1,2.1937]
[1756072922326,4.87787655,4795.4,4793.2,0.104]
[1756072922327,0.44717346,4794.3,4793.2,0.104]
[1756072922635,0.104,4793.9,4793.2,0.104]
[1756072922817,0.55743337,4793.4,4793.2,0.104]
[1756072923133,0.8029168,4793.3,4793.2,0.104]
[1756072923322,0.55117346,4793.3,4793.1,0.044]
[1756072923623,0.44717346,4793.2,4793.1,0.044]
[1756072925304,0.44717346,4793.2,4793.1,2.13033243]
[1756072925640,0.104,4793.9,4793.2,5.0862889]
[1756072925855,0.104,4793.9,4793.3,1.604]
[1756072926014,0.104,4793.4,4793.1,0.044]
[1756072926205,0.48807408,4793.3,4793.1,0.044]
[1756072926404,0.48807408,4793.3,4791.1,0.04]
[1756072926405,0.66,4793.1,4791.1,0.144]
[1756072926743,0.8505785,4792.2,4791.1,0.04]
[1756072926906,3.66,4792.1,4791.1,0.04]
[1756072927109,0.104,4791.2,4791.1,0.04]
[1756072927308,6.49305291,4791.2,4791.1,0.04]
[1756072927542,0.55207408,4791.2,4791.1,0.04]
[1756072928042,0.104,4791.2,4791.1,0.04]
[1756072928206,0.44717927,4791.9,4791.1,0.4817]
[1756072928406,0.44717927,4791.8,4791.1,0.4817]
[1756072928753,0.91635396,4791.7,4791.2,0.104]
[1756072928909,0.55890425,4791.5,4791.2,0.104]
[1756072929110,0.91635396,4791.4,4791.2,0.104]
[1756072929348,0.55095396,4791.3,4791.1,0.04]
[1756072929552,0.60487978,4791.2,4791.1,0.04]
[1756072930209,0.44695396,4791.2,4791.1,0.04]
[1756072930440,0.55095396,4791.2,4791.1,0.04]
[1756072930605,0.104,4791.2,4791.1,0.04]
[1756072931127,0.5734,4791.2,4791.1,0.04]
[1756072931303,1.02035396,4791.2,4791.1,0.04]
[1756072931507,1.02035396,4791.2,4790.1,0.04]
[1756072931508,0.66,4791.1,4790.1,0.04]
[1756072931721,0.104,4790.2,4790.1,0.04]
[1756072932011,0.55095396,4790.2,4790.1,0.04]
[1756072932224,1.68035396,4790.2,4790.1,0.04]
[1756072932633,36.76794946,4790.2,4790.1,0.009]
[1756072932836,3.66,4790.1,4789.1,0.04]
[1756072933128,0.7648,4789.2,4789.1,0.04]
[1756072933389,0.55175396,4789.2,4789.1,0.044]
[1756072933659,0.44695396,4789.2,4789.1,0.044]
[1756072933960,0.104,4789.6,4789.1,0.4954]
[1756072934256,0.104,4789.9,4789.2,0.91622]
[1756072934456,0.104,4789.9,4789.2,3.91622]
[1756072934757,0.104,4789.9,4789.2,0.1048]
[1756072935251,0.4447261,4790.8,4789.1,0.044]
[1756072935553,0.104,4789.3,4789.1,0.044]
[1756072937067,0.4447261,4790.7,4789.2,0.4514]
[1756072937270,0.4447261,4791.1,4789.4,3.0]
[1756072937430,0.4447261,4791.6,4789.6,3.0]
[1756072937632,0.4447261,4791.6,4789.5,4.75292]
[1756072937633,0.104,4790.8,4790.0,0.104]
[1756072937934,0.32668385,4792.0,4790.1,0.4514]
[1756072938141,0.104,4791.2,4790.8,2.08729167]
[1756072938350,0.104,4791.2,4790.5,0.104]
[1756072938554,0.4847261,4792.4,4790.7,3.0]
[1756072938752,0.104,4791.7,4791.0,0.104]
[1756072939049,0.04,4792.4,4791.2,3.0]
[1756072939250,0.04,4792.4,4792.0,2.08677933]
[1756072939463,0.04,4792.4,4790.4,0.4514]
[1756072939665,0.04,4792.4,4789.8,0.104]
[1756072939666,0.104,4790.6,4789.8,0.104]
[1756072939866,0.104,4790.6,4789.9,2.08768323]
[1756072940179,0.104,4790.6,4790.0,2.0876787]
[1756072940365,0.104,4790.6,4789.8,0.104]
[1756072940568,0.104,4790.6,4790.5,2.08746477]
[1756072940773,0.104,4790.6,4790.5,5.74761125]
[1756072940930,0.44516127,4792.3,4791.9,2.08681209]
[1756072941136,0.04,4792.4,4792.1,2.08672479]
[1756072941771,0.04,4792.4,4791.1,5.08719463]
[1756072941772,0.66,4792.2,4789.9,0.4514]
[1756072941967,0.89456127,4792.1,4789.7,2.08780936]
[1756072942167,1.19962121,4792.0,4789.8,2.08775328]
[1756072942372,0.66,4791.8,4789.4,1.605]
[1756072942674,0.66,4791.0,4789.1,0.044]
[1756072942970,1.21603809,4790.8,4789.1,0.044]
[1756072943170,1.30837663,4790.7,4789.1,0.044]
[1756072943408,0.44516127,4790.6,4789.1,0.044]
[1756072943570,0.66,4790.0,4789.1,0.044]
[1756072943868,0.66,4789.8,4789.1,0.044]
[1756072944049,4.23516127,4789.7,4789.1,0.044]
[1756072944378,1.19572121,4789.6,4789.1,0.044]
[1756072944664,0.44516127,4789.5,4789.1,0.044]
[1756072944865,0.44516127,4789.4,4789.1,0.044]
[1756072945045,0.44516127,4789.3,4789.1,0.044]
[1756072945242,0.44516127,4789.2,4789.1,0.044]
[1756072945847,0.44516127,4789.6,4789.1,0.044]
[1756072946051,0.44516127,4789.5,4789.1,0.044]
[1756072946271,0.44516431,4789.4,4789.1,0.044]
[1756072946445,0.44517489,4789.8,4789.1,0.044]
[1756072946644,0.4494,4789.3,4789.1,0.044]
[1756072946968,4.22917489,4789.2,4789.1,0.044]
[1756072947207,1.00121298,4789.2,4789.1,0.044]
[1756072947399,0.89457489,4789.2,4789.1,0.044]
[1756072947688,0.44517489,4789.2,4789.1,0.044]
[1756072947992,2.02133318,4789.2,4789.1,0.044]
[1756072948197,0.44517489,4789.2,4789.1,0.044]
[1756072948684,0.55617538,4790.2,4789.1,0.044]
[1756072948981,0.55617538,4789.2,4789.1,0.044]
[1756072949190,1.45086183,4789.2,4789.1,0.044]
[1756072949486,0.44528645,4789.2,4789.1,0.044]
[1756072949884,0.89468645,4789.2,4789.1,0.044]
[1756072950050,1.05832532,4789.2,4789.1,0.044]
[1756072950252,0.44528645,4789.2,4789.1,0.044]
[1756072950488,1.00209853,4789.2,4789.1,0.044]
[1756072950692,0.44528645,4789.2,4789.1,0.044]
[1756072950852,1.45149853,4789.2,4789.1,0.044]
[1756072951052,1.55468645,4789.2,4789.1,0.044]
[1756072951254,6.71997922,4789.2,4789.1,0.044]
[1756072951950,3.55159365,4789.2,4788.1,0.044]
[1756072952259,0.55642823,4788.5,4788.1,0.044]
[1756072952587,1.00171468,4788.4,4788.1,0.044]
[1756072952798,4.77285647,4788.2,4788.1,0.044]
[1756072953091,3.0,4787.9,4784.5,0.4514]
[1756072953249,0.55633942,4786.2,4784.5,0.4514]
[1756072953446,0.55633942,4786.2,4785.6,0.4514]
[1756072953447,0.44528645,4786.2,4785.6,0.4514]
[1756072953647,0.55594771,4786.8,4786.1,0.4914]
[1756072953947,0.44477346,4786.7,4786.1,2.58077286]
[1756072954147,0.55594771,4787.5,4786.2,0.4514]
[1756072954486,0.55594771,4786.8,4786.1,0.04]
[1756072954684,0.55594771,4786.6,4786.1,0.04]
[1756072954892,0.44489859,4786.5,4786.1,0.04]
[1756072955097,1.86430404,4788.6,4786.1,0.04]
[1756072955098,0.55594771,4787.2,4786.4,0.66]
[1756072955398,0.55594771,4788.1,4786.5,2.38146965]
[1756072955565,1.00095706,4788.0,4786.5,2.0574]
[1756072955754,0.55594771,4787.7,4786.5,5.0574]
[1756072955950,0.44500935,4787.6,4786.8,2.08906576]
[1756072956156,0.44500935,4787.5,4787.4,2.08881647]
[1756072956474,0.55594771,4788.3,4787.5,3.0]
[1756072956801,1.00132854,4788.2,4786.9,3.0]
[1756072956978,0.44538083,4788.1,4787.0,0.4514]
[1756072957196,0.44538083,4788.0,4787.9,2.74859834]
[1756072957501,0.59594771,4789.4,4788.6,2.08827874]
[1756072957700,0.59594771,4789.4,4788.7,0.4514]
[1756072957857,0.04,4789.4,4788.7,0.4514]
[1756072958058,0.04,4789.4,4789.0,2.0881186]
[1756072958252,0.04,4789.4,4788.8,3.34514]
[1756072958558,0.59594771,4789.4,4787.3,0.4514]
[1756072958771,0.59594771,4789.4,4786.6,1.606]
[1756072958772,0.55594771,4788.7,4786.7,0.4514]
[1756072958971,0.55594771,4789.0,4786.8,0.4514]
[1756072959299,0.55594771,4789.1,4789.0,2.0881186]
[1756072959469,0.59594771,4789.4,4789.0,2.08811347]
[1756072959652,0.59594771,4789.4,4787.8,3.0]
[1756072959850,0.55594771,4789.1,4787.5,0.66]
[1756072960056,0.55594771,4789.1,4787.4,0.4514]
[1756072960057,0.04,4789.4,4788.6,0.66]
[1756072960256,0.04,4789.4,4788.5,0.4514]
[1756072960489,0.04,4789.4,4788.9,2.08816194]
[1756072960689,0.04,4789.4,4789.1,2.088075]
[1756072960854,0.04,4789.4,4789.3,2.7479878]
[1756072961256,0.04,4789.4,4789.3,3.1993878]
[1756072961458,0.04,4789.4,4788.9,0.76278447]
[1756072961693,0.04,4789.4,4788.8,2.08818337]
[1756072961867,0.04,4789.4,4789.2,0.66]
[1756072962054,0.04,4789.4,4789.3,5.7479878]
[1756072962275,0.04,4790.4,4790.3,2.08755192]
[1756072962699,0.04,4790.4,4790.3,5.65925192]
[1756072963002,0.04,4790.4,4790.3,4.15422813]
[1756072963204,0.04,4790.4,4790.3,5.19155192]
[1756072963673,0.04,4790.4,4788.8,1.606]
[1756072963874,0.104,4790.0,4789.0,0.1048]
[1756072964081,0.4435,4789.9,4788.3,2.08840889]
[1756072964305,0.4435,4789.9,4788.1,1.606]
[1756072964306,0.1048,4789.0,4788.1,1.606]
[1756072964513,1.606,4790.2,4788.1,1.606]
[1756072964514,0.55594771,4790.0,4788.4,0.4677]
[1756072964816,0.55594771,4789.9,4788.1,4.606]
[1756072965108,0.55594771,4789.8,4788.2,2.08846748]
[1756072965322,0.104,4789.5,4788.9,0.1048]
[1756072965516,0.55594771,4790.1,4789.0,2.0881186]
[1756072965806,0.104,4789.8,4789.1,2.08806323]
[1756072965970,0.104,4789.8,4788.3,0.4677]
[1756072965971,0.4435,4790.1,4787.7,3.0]
[1756072966179,0.1048,4789.1,4788.6,2.08829037]
[1756072966390,0.1048,4789.1,4788.7,2.08824009]
[1756072966718,2.34778589,4790.2,4786.5,3.0]
[1756072966719,0.4435,4789.5,4786.5,3.0]
[1756072966871,0.1048,4788.7,4788.2,2.08846132]
[1756072967074,0.1048,4789.0,4788.4,0.1048]
[1756072967514,0.55594771,4789.8,4788.7,2.08823445]
[1756072967718,0.104,4789.8,4788.9,0.1048]
[1756072967892,0.104,4789.8,4789.5,2.08788583]
[1756072968074,0.104,4789.8,4789.2,2.08803031]
[1756072968075,0.041,4790.4,4789.4,0.104]
[1756072968275,0.104,4790.1,4789.4,0.104]
[1756072968477,0.4845,4790.4,4789.0,1.605]
[1756072968706,0.104,4789.7,4789.0,1.7098]
[1756072969107,0.4845,4790.4,4788.2,1.605]
[1756072969273,1.44563617,4790.3,4788.3,2.08839483]
[1756072969475,1.66857838,4790.2,4788.2,1.605]
[1756072969724,0.55594771,4789.9,4788.3,2.08838417]
[1756072970005,0.44618846,4789.8,4788.3,3.0]
[1756072970171,0.44618846,4789.7,4788.4,1.1277]
[1756072970374,0.44618846,4789.6,4788.6,3.0]
[1756072970574,0.55594771,4790.2,4788.9,3.0]
[1756072970812,0.44640594,4790.1,4789.6,2.08784189]
[1756072971021,0.041,4790.4,4789.3,3.0]
[1756072971208,0.041,4790.4,4790.0,2.08764875]
[1756072971390,0.041,4790.4,4790.0,0.55553488]
[1756072971586,0.041,4790.4,4790.1,5.55533908]
[1756072971838,0.041,4790.4,4789.3,0.66]
[1756072972128,0.041,4790.4,4790.1,3.0]
[1756072972335,0.041,4790.4,4790.2,2.0875955]
[1756072972505,0.041,4790.4,4790.0,0.4677]
[1756072972702,0.041,4790.4,4790.2,0.66]
[1756072972890,0.041,4790.4,4790.3,8.01091401]
[1756072973087,0.041,4790.4,4790.3,8.47861401]
[1756072973301,0.041,4790.4,4790.3,5.26336209]
[1756072973523,0.041,4790.4,4790.3,4.605]
[1756072973925,0.041,4790.4,4790.3,7.82025192]
[1756072974926,0.001,4790.5,4790.4,5.74750835]
[1756072975229,1e-08,4790.5,4790.4,6.21520835]
[1756072975433,1e-08,4790.5,4790.4,16.57786849]
[1756072975598,1e-08,4790.5,4790.4,18.60921212]
[1756072976022,1e-08,4790.5,4790.4,8.24655198]
[1756072976220,1e-08,4790.5,4790.4,12.07855198]
[1756072976420,1e-08,4790.5,4790.4,9.58050835]
[1756072977495,1e-08,4790.5,4790.4,10.04820835]
[1756072978345,1e-08,4790.5,4790.4,6.21520835]
[1756072978523,1e-08,4790.5,4790.4,10.04320835]
[1756072979123,1e-08,4790.5,4790.4,10.14720835]
[1756072979427,1e-08,4790.5,4790.4,11.06248438]
[1756072979932,1e-08,4790.5,4790.4,0.764]
[1756072980137,1e-08,4790.5,4790.4,6.01750835]
[1756072980336,1e-08,4790.5,4790.4,9.67750835]
[1756072980539,1e-08,4790.5,4790.4,10.14520835]
[1756072980706,1e-08,4790.5,4790.4,9.67750835]
[1756072980898,1e-08,4790.5,4790.4,4.44100955]
[1756072981109,1e-08,4790.5,4790.4,6.824]
[1756072981515,1e-08,4790.5,4789.9,3.824]
[1756072981715,1e-08,4790.5,4790.0,3.825]
[1756072981915,1e-08,4790.5,4789.5,1.605]
[1756072981916,1e-08,4790.5,4790.1,5.91263137]
[1756072982143,1e-08,4790.5,4790.2,3.0]
[1756072982445,1e-08,4790.5,4790.4,2.74750835]
[1756072982665,1e-08,4790.5,4790.4,2.265]
[1756072982822,1e-08,4790.5,4790.4,8.17850835]
[1756072983016,1e-08,4790.5,4790.4,11.17850835]
[1756072983343,1e-08,4790.5,4790.4,4.605]
[1756072983562,1e-08,4790.5,4790.4,5.43]
[1756072983718,0.44350001,4790.5,4790.1,3.827]
[1756072983905,0.44350001,4790.5,4790.3,3.0]
[1756072984105,0.44350001,4790.5,4790.3,3.827]
[1756072984342,1e-08,4790.5,4790.3,3.827]
[1756072984522,0.4435,4790.4,4789.0,0.004]
[1756072984910,0.20485,4790.3,4789.0,0.004]
[1756072985307,0.4435,4790.2,4789.0,0.004]
[1756072985545,0.4435,4790.2,4789.0,3.833]
[1756072986041,0.4435,4790.2,4789.1,3.833]
[1756072986247,0.4435,4790.2,4789.0,3.004]
[1756072986441,0.225335,4790.1,4789.0,3.004]
[1756072986743,0.4435,4790.2,4789.0,3.004]
[1756072986906,1.60500001,4790.5,4789.1,2.08803509]
[1756072987109,1.60500001,4790.5,4789.0,0.004]
[1756072987307,0.4435,4790.4,4789.1,3.829]
[1756072987543,0.4435,4790.4,4789.2,3.0]
[1756072987744,1e-08,4790.5,4789.2,3.6833]
[1756072987924,1e-08,4790.5,4789.2,5.7713308]
[1756072988243,1e-08,4790.5,4789.2,0.6833]
[1756072988450,1e-08,4790.5,4789.4,3.0]
[1756072988667,1e-08,4790.5,4789.5,4.605]
[1756072988869,1e-08,4790.5,4790.2,2.08757523]
[1756072989073,1e-08,4790.5,4790.2,3.828]
[1756072989438,1e-08,4790.5,4790.4,2.08750835]
[1756072989638,1e-08,4790.5,4790.4,7.35250835]
[1756072989863,1e-08,4790.5,4790.4,7.82020835]
[1756072990080,1e-08,4790.5,4790.4,9.19378709]
[1756072990368,0.001,4791.1,4791.0,5.74724692]
[1756072990571,0.001,4791.1,4791.0,7.487]
[1756072990735,0.001,4791.1,4790.4,13.80893888]
[1756072990736,0.001,4791.1,4790.9,3.0]
[1756072991135,0.001,4791.1,4790.4,3.69249775]
[1756072991136,0.4435,4791.0,4790.4,1.605]
[1756072991336,0.4435,4791.0,4790.5,0.104]
[1756072991570,0.4435,4790.9,4789.7,3.0]
[1756072991883,0.104,4790.8,4790.1,0.104]
[1756072992037,0.4435,4790.9,4789.7,3.829]
[1756072992239,0.104,4790.5,4789.9,0.104]
[1756072992557,0.104,4790.0,4787.9,1.605]
[1756072992766,2.0349,4789.9,4787.9,1.605]
[1756072992949,0.1048,4789.1,4787.8,3.828]
[1756072993150,0.1048,4789.1,4787.8,3.9328]
[1756072993349,0.5347,4789.1,4787.8,6.02141201]
[1756072993559,0.5347,4789.1,4787.2,5.08890136]
[1756072993764,0.5347,4789.1,4787.7,3.0]
[1756072994566,0.5347,4789.1,4787.6,3.9328]
[1756072994779,0.1048,4789.1,4787.7,3.0]
[1756072994965,0.1048,4789.1,4788.0,2.09252528]
[1756072995351,0.5347,4789.1,4788.2,2.08844977]
[1756072995674,0.5347,4789.1,4788.9,0.004]
[1756072996188,1.605,4789.0,4788.9,0.004]
[1756072996364,2.20588,4789.0,4788.9,0.004]
[1756072997289,2.53271004,4789.0,4788.9,0.004]
[1756072997493,2.20588,4789.0,4788.9,0.004]
[1756072997797,1.605,4789.0,4788.9,0.004]
[1756072997995,0.32681811,4789.6,4788.9,0.004]
[1756072998290,1.605,4789.7,4788.9,0.004]
[1756072998468,0.1048,4789.2,4788.9,0.004]